[Event "Titled Tuesday Blitz March 22 Late 2022"]
[White "Manukyan, Sargis A."]
[Black "Weetik, Vjacheslav"]
[WhiteFideId "13303970"]
[BlackFideId "4153472"]
[WhiteElo "2187"]
[BlackElo "2469"]
[Result "1/2-1/2"]
[Round "06"]
[TimeControl "180+1"]
[Date "2022.03.22"]
[WhiteClock "0:01:09"]
[BlackClock "0:00:17"]

1. d4 {[%clk 0:02:49]}  Nf6 {[%clk 0:02:58]} 2. e3 {[%clk 0:02:45]}  d5 {[%clk 0:02:58]} 3. Nf3 {[%clk 0:02:43]}  c5 {[%clk 0:02:58]} 4. Be2 {[%clk 0:02:44]}  Nc6 {[%clk 0:02:57]} 5. O-O {[%clk 0:02:44]}  Bg4 {[%clk 0:02:57]} 6. dxc5 {[%clk 0:02:34]}  e6 {[%clk 0:02:56]} 7. a3 {[%clk 0:02:33]}  Bxc5 {[%clk 0:02:53]} 8. b4 {[%clk 0:02:32]}  Bd6 {[%clk 0:02:45]} 9. Bb2 {[%clk 0:02:28]}  Qc7 {[%clk 0:02:43]} 10. h3 {[%clk 0:02:28]}  Bh5 {[%clk 0:02:42]} 11. Nbd2 {[%clk 0:02:28]}  O-O {[%clk 0:02:29]} 12. c4 {[%clk 0:02:28]}  Be7 {[%clk 0:02:18]} 13. Rc1 {[%clk 0:02:26]}  dxc4 {[%clk 0:01:56]} 14. Nxc4 {[%clk 0:02:27]}  Rad8 {[%clk 0:01:51]} 15. Qb3 {[%clk 0:02:27]}  Ne4 {[%clk 0:01:42]} 16. Rfd1 {[%clk 0:02:18]}  Bf6 {[%clk 0:01:36]} 17. Bxf6 {[%clk 0:02:15]}  Nxf6 {[%clk 0:01:35]} 18. Nce5 {[%clk 0:02:15]}  Rxd1+ {[%clk 0:01:32]} 19. Qxd1 {[%clk 0:02:07]}  Bxf3 {[%clk 0:01:20]} 20. Nxf3 {[%clk 0:02:01]}  Rd8 {[%clk 0:01:20]} 21. Qc2 {[%clk 0:02:01]}  Qb6 {[%clk 0:01:18]} 22. Rd1 {[%clk 0:01:57]}  h6 {[%clk 0:01:11]} 23. Rxd8+ {[%clk 0:01:56]}  Qxd8 {[%clk 0:01:12]} 24. g3 {[%clk 0:01:52]}  Qd5 {[%clk 0:01:09]} 25. Qd3 {[%clk 0:01:46]}  Qxd3 {[%clk 0:00:59]} 26. Bxd3 {[%clk 0:01:47]}  Kf8 {[%clk 0:01:00]} 27. Kf1 {[%clk 0:01:46]}  Ke7 {[%clk 0:01:00]} 28. Ke2 {[%clk 0:01:47]}  Nd5 {[%clk 0:01:00]} 29. Kd2 {[%clk 0:01:46]}  Kd6 {[%clk 0:00:58]} 30. e4 {[%clk 0:01:46]}  Nf6 {[%clk 0:00:49]} 31. b5 {[%clk 0:01:46]}  Ne5 {[%clk 0:00:46]} 32. Nxe5 {[%clk 0:01:44]}  Kxe5 {[%clk 0:00:46]} 33. Ke3 {[%clk 0:01:43]}  Kd6 {[%clk 0:00:44]} 34. Kd4 {[%clk 0:01:36]}  e5+ {[%clk 0:00:43]} 35. Kc4 {[%clk 0:01:36]}  Nd7 {[%clk 0:00:42]} 36. a4 {[%clk 0:01:34]}  Nc5 {[%clk 0:00:40]} 37. Bc2 {[%clk 0:01:34]}  b6 {[%clk 0:00:40]} 38. f4 {[%clk 0:01:32]}  f6 {[%clk 0:00:37]} 39. f5 {[%clk 0:01:29]}  Nb7 {[%clk 0:00:33]} 40. Kb4 {[%clk 0:01:27]}  Nc5 {[%clk 0:00:30]} 41. g4 {[%clk 0:01:25]}  Kc7 {[%clk 0:00:29]} 42. a5 {[%clk 0:01:23]}  Nb7 {[%clk 0:00:28]} 43. a6 {[%clk 0:01:21]}  Nc5 {[%clk 0:00:25]} 44. Kc4 {[%clk 0:01:22]}  Kd6 {[%clk 0:00:25]} 45. Bb1 {[%clk 0:01:20]}  Na4 {[%clk 0:00:23]} 46. Bc2 {[%clk 0:01:18]}  Nc5 {[%clk 0:00:23]} 47. Bb1 {[%clk 0:01:19]}  Nd7 {[%clk 0:00:23]} 48. Bc2 {[%clk 0:01:18]}  Nf8 {[%clk 0:00:23]} 49. h4 {[%clk 0:01:13]}  Nd7 {[%clk 0:00:22]} 50. Bb1 {[%clk 0:01:12]}  Nc5 {[%clk 0:00:22]} 51. Bc2 {[%clk 0:01:13]}  Nd7 {[%clk 0:00:20]} 52. Bb1 {[%clk 0:01:14]}  Nf8 {[%clk 0:00:20]} 53. Bc2 {[%clk 0:01:14]}  g5 {[%clk 0:00:18]} 54. h5 {[%clk 0:01:08]}  Nd7 {[%clk 0:00:18]} 55. Bb1 {[%clk 0:01:08]}  Nc5 {[%clk 0:00:18]} 56. Bc2 {[%clk 0:01:08]}  Nd7 {[%clk 0:00:17]} 57. Bb1 {[%clk 0:01:08]}  Nf8 {[%clk 0:00:17]} 58. Bc2 {[%clk 0:01:09]}  Nd7 {[%clk 0:00:17]} 1/2-1/2


[Site "https://www.chess.com"]

[Event "Titled Tuesday Blitz March 22 Late 2022"]
[White "Matinian, Nikita"]
[Black "Fedoseev, Vladimir"]
[WhiteFideId "24129100"]
[BlackFideId "24130737"]
[WhiteElo "2422"]
[BlackElo "2726"]
[Result "0-1"]
[Round "06"]
[TimeControl "180+1"]
[Date "2022.03.22"]
[WhiteClock "0:00:02"]
[BlackClock "0:00:24"]

1. e4 {[%clk 0:03:00]}  c5 {[%clk 0:02:59]} 2. Nc3 {[%clk 0:03:00]}  Nc6 {[%clk 0:02:59]} 3. Bb5 {[%clk 0:03:00]}  Nd4 {[%clk 0:02:58]} 4. Nf3 {[%clk 0:03:01]}  a6 {[%clk 0:02:56]} 5. Bd3 {[%clk 0:03:00]}  g6 {[%clk 0:02:56]} 6. O-O {[%clk 0:03:00]}  Bg7 {[%clk 0:02:53]} 7. Re1 {[%clk 0:03:00]}  d6 {[%clk 0:02:49]} 8. h3 {[%clk 0:02:55]}  Nxf3+ {[%clk 0:02:41]} 9. Qxf3 {[%clk 0:02:55]}  Nf6 {[%clk 0:02:42]} 10. b3 {[%clk 0:02:48]}  Nd7 {[%clk 0:02:39]} 11. Bb2 {[%clk 0:02:47]}  O-O {[%clk 0:02:37]} 12. Bf1 {[%clk 0:02:45]}  Ne5 {[%clk 0:02:27]} 13. Qg3 {[%clk 0:02:43]}  Nc6 {[%clk 0:02:27]} 14. Nd1 {[%clk 0:02:23]}  e5 {[%clk 0:01:58]} 15. Ne3 {[%clk 0:02:19]}  f5 {[%clk 0:01:56]} 16. exf5 {[%clk 0:02:19]}  gxf5 {[%clk 0:01:56]} 17. f4 {[%clk 0:02:06]}  b5 {[%clk 0:01:55]} 18. a4 {[%clk 0:02:04]}  Rb8 {[%clk 0:01:53]} 19. axb5 {[%clk 0:02:04]}  axb5 {[%clk 0:01:53]} 20. Nd5 {[%clk 0:01:11]}  Be6 {[%clk 0:01:48]} 21. c4 {[%clk 0:01:09]}  bxc4 {[%clk 0:01:04]} 22. Bxc4 {[%clk 0:01:06]}  Kh8 {[%clk 0:01:04]} 23. fxe5 {[%clk 0:00:57]}  f4 {[%clk 0:01:00]} 24. Qxg7+ {[%clk 0:00:54]}  Kxg7 {[%clk 0:00:58]} 25. exd6+ {[%clk 0:00:55]}  Kf7 {[%clk 0:00:56]} 26. Ra6 {[%clk 0:00:26]}  Qxd6 {[%clk 0:00:55]} 27. Rxe6 {[%clk 0:00:19]}  Kxe6 {[%clk 0:00:52]} 28. Nb4+ {[%clk 0:00:03]}  Kd7 {[%clk 0:00:52]} 29. Nxc6 {[%clk 0:00:02]}  Qxc6 {[%clk 0:00:50]} 30. Rxc6 {[%clk 0:00:01]}  Kxc6 {[%clk 0:00:51]} 31. Be5 {[%clk 0:00:02]}  Rbe8 {[%clk 0:00:49]} 32. Bc3 {[%clk 0:00:01]}  f3 {[%clk 0:00:45]} 33. g4 {[%clk 0:00:01]}  f2+ {[%clk 0:00:44]} 34. Kg2 {[%clk 0:00:02]}  Re1 {[%clk 0:00:41]} 35. Bf1 {[%clk 0:00:02]}  Kd5 {[%clk 0:00:37]} 36. b4 {[%clk 0:00:01]}  cxb4 {[%clk 0:00:24]} 37. Bxb4 {[%clk 0:00:02]}  Rb8 {[%clk 0:00:24]} 38. Bc3 {[%clk 0:00:02]}  Rbb1 {[%clk 0:00:24]} 0-1


[Site "https://www.chess.com"]

[Event "Titled Tuesday Blitz March 22 Late 2022"]
[White "Mekhitarian, Krikor Sevag"]
[Black "Romero Ruscalleda, Josep"]
[WhiteFideId "2107660"]
[BlackFideId "2231859"]
[WhiteElo "2598"]
[BlackElo "2269"]
[Result "1-0"]
[Round "06"]
[TimeControl "180+1"]
[Date "2022.03.22"]
[WhiteClock "0:01:26"]
[BlackClock "0:01:49"]

1. e4 {[%clk 0:03:00]}  g6 {[%clk 0:02:59]} 2. d4 {[%clk 0:03:00]}  Bg7 {[%clk 0:02:59]} 3. Nc3 {[%clk 0:03:01]}  d6 {[%clk 0:02:59]} 4. Be3 {[%clk 0:03:00]}  a6 {[%clk 0:02:57]} 5. h4 {[%clk 0:02:59]}  h5 {[%clk 0:02:56]} 6. f3 {[%clk 0:02:58]}  b5 {[%clk 0:02:54]} 7. Qd2 {[%clk 0:02:58]}  Nd7 {[%clk 0:02:54]} 8. Nh3 {[%clk 0:02:58]}  Bb7 {[%clk 0:02:54]} 9. Ng5 {[%clk 0:02:59]}  Rc8 {[%clk 0:02:53]} 10. a4 {[%clk 0:02:51]}  b4 {[%clk 0:02:53]} 11. Bc4 {[%clk 0:02:51]}  e6 {[%clk 0:02:49]} 12. Ne2 {[%clk 0:02:51]}  c5 {[%clk 0:02:45]} 13. dxc5 {[%clk 0:02:31]}  dxc5 {[%clk 0:02:44]} 14. O-O-O {[%clk 0:02:18]}  Ngf6 {[%clk 0:02:32]} 15. Nf4 {[%clk 0:02:07]}  O-O {[%clk 0:02:00]} 16. Nfxe6 {[%clk 0:02:00]}  fxe6 {[%clk 0:01:56]} 17. Nxe6 {[%clk 0:01:53]}  Qa5 {[%clk 0:01:56]} 18. Nxf8+ {[%clk 0:01:36]}  Kxf8 {[%clk 0:01:53]} 19. Qd6+ {[%clk 0:01:35]}  Ke8 {[%clk 0:01:54]} 20. Qe6+ {[%clk 0:01:35]}  Kd8 {[%clk 0:01:54]} 21. Bg5 {[%clk 0:01:29]}  Kc7 {[%clk 0:01:51]} 22. Qd6+ {[%clk 0:01:27]}  Kd8 {[%clk 0:01:49]} 23. Qxd7# {[%clk 0:01:26]} 1-0


[Site "https://www.chess.com"]

[Event "Titled Tuesday Blitz March 22 Late 2022"]
[White "Milosevic, Milos"]
[Black "Gulecyuz, Deniz"]
[WhiteFideId "964875"]
[BlackFideId "30921341"]
[WhiteElo "2237"]
[BlackElo "1923"]
[Result "1-0"]
[Round "06"]
[TimeControl "180+1"]
[Date "2022.03.22"]
[WhiteClock "0:01:28"]
[BlackClock "0:01:03"]

1. e4 {[%clk 0:02:54]}  c5 {[%clk 0:03:00]} 2. Nc3 {[%clk 0:02:53]}  Nc6 {[%clk 0:02:58]} 3. f4 {[%clk 0:02:22]}  e6 {[%clk 0:02:57]} 4. Nf3 {[%clk 0:02:21]}  d5 {[%clk 0:02:58]} 5. Bb5 {[%clk 0:02:18]}  dxe4 {[%clk 0:02:53]} 6. Nxe4 {[%clk 0:02:19]}  Bd7 {[%clk 0:02:53]} 7. O-O {[%clk 0:02:16]}  a6 {[%clk 0:02:52]} 8. Bd3 {[%clk 0:02:09]}  Nf6 {[%clk 0:02:52]} 9. c3 {[%clk 0:02:05]}  Nxe4 {[%clk 0:02:43]} 10. Bxe4 {[%clk 0:02:04]}  Bd6 {[%clk 0:02:44]} 11. d4 {[%clk 0:02:01]}  cxd4 {[%clk 0:02:42]} 12. Nxd4 {[%clk 0:02:02]}  Qc7 {[%clk 0:02:32]} 13. Be3 {[%clk 0:01:57]}  Nxd4 {[%clk 0:01:59]} 14. Qxd4 {[%clk 0:01:57]}  O-O-O {[%clk 0:01:31]} 15. Qa7 {[%clk 0:01:54]}  Bc6 {[%clk 0:01:25]} 16. Bb6 {[%clk 0:01:50]}  Qe7 {[%clk 0:01:10]} 17. Bxc6 {[%clk 0:01:46]}  Bb8 {[%clk 0:01:02]} 18. Bxb7+ {[%clk 0:01:29]}  Qxb7 {[%clk 0:01:02]} 19. Qxb7+ {[%clk 0:01:30]}  Kxb7 {[%clk 0:01:03]} 20. Bxd8 {[%clk 0:01:30]}  Rxd8 {[%clk 0:01:03]} 21. Rad1 {[%clk 0:01:28]} 1-0


[Site "https://www.chess.com"]

[Event "Titled Tuesday Blitz March 22 Late 2022"]
[White "Msellek, Ilyass"]
[Black "Dardha, Daniel"]
[WhiteFideId "675938"]
[BlackFideId "240990"]
[WhiteElo "2219"]
[BlackElo "2482"]
[Result "1-0"]
[Round "06"]
[TimeControl "180+1"]
[Date "2022.03.22"]
[WhiteClock "0:00:16"]
[BlackClock "0:00:01"]

1. Nf3 {[%clk 0:03:00]}  f5 {[%clk 0:02:53]} 2. d3 {[%clk 0:03:00]}  Nf6 {[%clk 0:02:52]} 3. g3 {[%clk 0:02:56]}  d6 {[%clk 0:02:49]} 4. Bg2 {[%clk 0:02:56]}  g6 {[%clk 0:02:44]} 5. O-O {[%clk 0:02:57]}  Bg7 {[%clk 0:02:44]} 6. e4 {[%clk 0:02:50]}  Nc6 {[%clk 0:02:35]} 7. Nc3 {[%clk 0:02:17]}  O-O {[%clk 0:02:33]} 8. Nd5 {[%clk 0:02:01]}  fxe4 {[%clk 0:02:18]} 9. Nxf6+ {[%clk 0:01:59]}  Bxf6 {[%clk 0:02:02]} 10. dxe4 {[%clk 0:02:00]}  Bg4 {[%clk 0:02:02]} 11. h3 {[%clk 0:01:57]}  Bxf3 {[%clk 0:02:00]} 12. Bxf3 {[%clk 0:01:58]}  e6 {[%clk 0:02:00]} 13. Bh6 {[%clk 0:01:56]}  Bg7 {[%clk 0:01:55]} 14. Bxg7 {[%clk 0:01:53]}  Kxg7 {[%clk 0:01:56]} 15. Bg2 {[%clk 0:01:54]}  e5 {[%clk 0:01:51]} 16. c3 {[%clk 0:01:52]}  h5 {[%clk 0:01:51]} 17. h4 {[%clk 0:01:50]}  Qe7 {[%clk 0:01:40]} 18. Qb3 {[%clk 0:01:48]}  b6 {[%clk 0:01:38]} 19. a4 {[%clk 0:01:48]}  g5 {[%clk 0:01:31]} 20. Qd5 {[%clk 0:01:44]}  Qd7 {[%clk 0:01:16]} 21. hxg5 {[%clk 0:01:41]}  Ne7 {[%clk 0:01:16]} 22. Qd1 {[%clk 0:01:37]}  h4 {[%clk 0:00:58]} 23. gxh4 {[%clk 0:01:32]}  Rf4 {[%clk 0:00:54]} 24. h5 {[%clk 0:01:24]}  Rh8 {[%clk 0:00:38]} 25. c4 {[%clk 0:01:21]}  Nc6 {[%clk 0:00:32]} 26. Ra3 {[%clk 0:01:20]}  Qg4 {[%clk 0:00:14]} 27. h6+ {[%clk 0:01:07]}  Kg6 {[%clk 0:00:12]} 28. Rg3 {[%clk 0:01:07]}  Qxd1 {[%clk 0:00:11]} 29. Rxd1 {[%clk 0:01:08]}  Nd4 {[%clk 0:00:11]} 30. Rxd4 {[%clk 0:00:57]}  exd4 {[%clk 0:00:12]} 31. Bh3 {[%clk 0:00:58]}  Rxe4 {[%clk 0:00:10]} 32. Bf1 {[%clk 0:00:54]}  Rf4 {[%clk 0:00:07]} 33. Bd3+ {[%clk 0:00:54]}  Kh5 {[%clk 0:00:06]} 34. h7 {[%clk 0:00:36]}  Rf7 {[%clk 0:00:06]} 35. g6 {[%clk 0:00:34]}  Rg7 {[%clk 0:00:06]} 36. f4 {[%clk 0:00:34]}  Kh4 {[%clk 0:00:05]} 37. Kg2 {[%clk 0:00:34]}  c5 {[%clk 0:00:02]} 38. Kh2 {[%clk 0:00:20]}  Re7 {[%clk 0:00:01]} 39. g7 {[%clk 0:00:18]}  Rxg7 {[%clk 0:00:01]} 40. Rxg7 {[%clk 0:00:19]}  Re8 {[%clk 0:00:01]} 41. Rg8 {[%clk 0:00:19]}  Ra8 {[%clk 0:00:01]} 42. h8=Q# {[%clk 0:00:16]} 1-0


[Site "https://www.chess.com"]

[Event "Titled Tuesday Blitz March 22 Late 2022"]
[White "Nazaretyan, Tigran"]
[Black "Manukian, Artak"]
[WhiteFideId "24162345"]
[BlackFideId "13301373"]
[WhiteElo "2219"]
[BlackElo "2438"]
[Result "1-0"]
[Round "06"]
[TimeControl "180+1"]
[Date "2022.03.22"]
[WhiteClock "0:00:20"]
[BlackClock "0:00:10"]

1. d4 {[%clk 0:03:00]}  Nf6 {[%clk 0:02:53]} 2. c4 {[%clk 0:03:00]}  e6 {[%clk 0:02:52]} 3. Nf3 {[%clk 0:02:57]}  d5 {[%clk 0:02:52]} 4. Nc3 {[%clk 0:02:57]}  c5 {[%clk 0:02:50]} 5. cxd5 {[%clk 0:02:55]}  cxd4 {[%clk 0:02:46]} 6. Qa4+ {[%clk 0:02:50]}  Bd7 {[%clk 0:02:36]} 7. Qxd4 {[%clk 0:02:49]}  exd5 {[%clk 0:02:26]} 8. Nxd5 {[%clk 0:02:45]}  Qa5+ {[%clk 0:02:23]} 9. Nc3 {[%clk 0:02:43]}  Nc6 {[%clk 0:02:23]} 10. Qe3+ {[%clk 0:02:31]}  Be7 {[%clk 0:02:20]} 11. Bd2 {[%clk 0:02:27]}  O-O {[%clk 0:02:19]} 12. Qg5 {[%clk 0:02:18]}  Qb6 {[%clk 0:02:04]} 13. Qb5 {[%clk 0:02:18]}  Qc7 {[%clk 0:01:58]} 14. Qc4 {[%clk 0:02:10]}  Qb6 {[%clk 0:01:47]} 15. Na4 {[%clk 0:02:04]}  Qd8 {[%clk 0:01:43]} 16. e3 {[%clk 0:01:56]}  Rc8 {[%clk 0:01:31]} 17. Nc3 {[%clk 0:01:36]}  Nb4 {[%clk 0:01:23]} 18. Qb3 {[%clk 0:01:31]}  Bf5 {[%clk 0:01:18]} 19. Nd4 {[%clk 0:01:26]}  Nd3+ {[%clk 0:01:08]} 20. Bxd3 {[%clk 0:01:20]}  Bxd3 {[%clk 0:01:07]} 21. Nd5 {[%clk 0:01:12]}  Bc4 {[%clk 0:01:02]} 22. Nxe7+ {[%clk 0:01:12]}  Qxe7 {[%clk 0:01:03]} 23. Bb4 {[%clk 0:01:04]}  Qe4 {[%clk 0:01:01]} 24. Qa3 {[%clk 0:01:01]}  Qxg2 {[%clk 0:00:59]} 25. O-O-O {[%clk 0:00:43]}  Bb3+ {[%clk 0:00:49]} 26. Kb1 {[%clk 0:00:34]}  Bxd1 {[%clk 0:00:47]} 27. Rxd1 {[%clk 0:00:34]}  Rfd8 {[%clk 0:00:44]} 28. Be7 {[%clk 0:00:33]}  Qe4+ {[%clk 0:00:32]} 29. Ka1 {[%clk 0:00:32]}  Rd7 {[%clk 0:00:20]} 30. Bxf6 {[%clk 0:00:31]}  gxf6 {[%clk 0:00:20]} 31. Qxa7 {[%clk 0:00:25]}  Kh8 {[%clk 0:00:11]} 32. Qb6 {[%clk 0:00:24]}  Qc2 {[%clk 0:00:10]} 33. Qxf6+ {[%clk 0:00:23]}  Kg8 {[%clk 0:00:11]} 34. Rg1+ {[%clk 0:00:23]}  Qg6 {[%clk 0:00:09]} 35. Rxg6+ {[%clk 0:00:21]}  hxg6 {[%clk 0:00:10]} 36. a3 {[%clk 0:00:20]} 1-0


[Site "https://www.chess.com"]

[Event "Titled Tuesday Blitz March 22 Late 2022"]
[White "P., Komal Kishore"]
[Black "Celestino, Rafael Teixeira"]
[WhiteFideId "5016703"]
[BlackFideId "2108925"]
[WhiteElo "2060"]
[BlackElo "2321"]
[Result "1-0"]
[Round "06"]
[TimeControl "180+1"]
[Date "2022.03.22"]
[WhiteClock "0:00:35"]
[BlackClock "0:00:41"]

1. e4 {[%clk 0:03:00]}  e5 {[%clk 0:02:57]} 2. Nf3 {[%clk 0:03:00]}  Nc6 {[%clk 0:02:56]} 3. Bb5 {[%clk 0:03:00]}  a6 {[%clk 0:02:55]} 4. Ba4 {[%clk 0:03:00]}  b5 {[%clk 0:02:54]} 5. Bb3 {[%clk 0:03:00]}  Nf6 {[%clk 0:02:55]} 6. O-O {[%clk 0:02:58]}  Bc5 {[%clk 0:02:56]} 7. d3 {[%clk 0:02:55]}  d6 {[%clk 0:02:56]} 8. h3 {[%clk 0:02:54]}  h6 {[%clk 0:02:54]} 9. c3 {[%clk 0:02:54]}  Rg8 {[%clk 0:02:55]} 10. d4 {[%clk 0:02:50]}  exd4 {[%clk 0:02:47]} 11. cxd4 {[%clk 0:02:50]}  Bb6 {[%clk 0:02:47]} 12. e5 {[%clk 0:02:48]}  Ne4 {[%clk 0:02:46]} 13. exd6 {[%clk 0:02:44]}  cxd6 {[%clk 0:02:47]} 14. Bd5 {[%clk 0:02:41]}  Bb7 {[%clk 0:02:20]} 15. Bxe4 {[%clk 0:02:38]}  d5 {[%clk 0:02:21]} 16. Bd3 {[%clk 0:02:34]}  Qf6 {[%clk 0:02:20]} 17. Re1+ {[%clk 0:02:33]}  Kd7 {[%clk 0:02:20]} 18. Ne5+ {[%clk 0:02:30]}  Kd6 {[%clk 0:02:15]} 19. Nxc6 {[%clk 0:02:27]}  Bxc6 {[%clk 0:02:16]} 20. Be3 {[%clk 0:02:22]}  g5 {[%clk 0:02:14]} 21. Qf3 {[%clk 0:02:17]}  Bxd4 {[%clk 0:02:06]} 22. Bxd4 {[%clk 0:02:12]}  Qxd4 {[%clk 0:02:05]} 23. Nc3 {[%clk 0:02:08]}  g4 {[%clk 0:01:58]} 24. hxg4 {[%clk 0:02:07]}  Rxg4 {[%clk 0:01:56]} 25. Qxf7 {[%clk 0:02:05]}  Kc5 {[%clk 0:01:44]} 26. Rac1 {[%clk 0:02:00]}  Kb6 {[%clk 0:01:44]} 27. Red1 {[%clk 0:01:51]}  Rf4 {[%clk 0:01:25]} 28. Nxd5+ {[%clk 0:01:36]}  Qxd5 {[%clk 0:01:07]} 29. Rxc6+ {[%clk 0:01:34]}  Qxc6 {[%clk 0:00:53]} 30. Qxf4 {[%clk 0:01:32]}  Rg8 {[%clk 0:00:54]} 31. Be4 {[%clk 0:01:29]}  Qc4 {[%clk 0:00:49]} 32. Rd6+ {[%clk 0:01:26]}  Ka5 {[%clk 0:00:49]} 33. Qd2+ {[%clk 0:01:23]}  b4 {[%clk 0:00:49]} 34. Rd5+ {[%clk 0:01:20]}  Kb6 {[%clk 0:00:50]} 35. Qd4+ {[%clk 0:01:19]}  Qxd4 {[%clk 0:00:47]} 36. Rxd4 {[%clk 0:01:19]}  a5 {[%clk 0:00:48]} 37. a3 {[%clk 0:01:16]}  Kc5 {[%clk 0:00:48]} 38. Rd5+ {[%clk 0:01:12]}  Kc4 {[%clk 0:00:49]} 39. axb4 {[%clk 0:01:12]}  axb4 {[%clk 0:00:49]} 40. Rd6 {[%clk 0:01:10]}  Re8 {[%clk 0:00:48]} 41. Bd5+ {[%clk 0:01:08]}  Kc5 {[%clk 0:00:47]} 42. Rd7 {[%clk 0:01:07]}  Re2 {[%clk 0:00:47]} 43. b3 {[%clk 0:01:05]}  Rd2 {[%clk 0:00:48]} 44. Be6 {[%clk 0:01:03]}  Re2 {[%clk 0:00:48]} 45. Bf7 {[%clk 0:01:01]}  Re4 {[%clk 0:00:42]} 46. Rc7+ {[%clk 0:00:57]}  Kd6 {[%clk 0:00:41]} 47. Rc4 {[%clk 0:00:55]}  Re1+ {[%clk 0:00:40]} 48. Kh2 {[%clk 0:00:54]}  Ke7 {[%clk 0:00:41]} 49. Bh5 {[%clk 0:00:52]}  Re5 {[%clk 0:00:40]} 50. Bf3 {[%clk 0:00:51]}  Re1 {[%clk 0:00:38]} 51. Rxb4 {[%clk 0:00:49]}  Rb1 {[%clk 0:00:39]} 52. g4 {[%clk 0:00:48]}  Kd6 {[%clk 0:00:39]} 53. Kg3 {[%clk 0:00:47]}  Kc5 {[%clk 0:00:39]} 54. Rb8 {[%clk 0:00:46]}  Rb2 {[%clk 0:00:39]} 55. b4+ {[%clk 0:00:44]}  Kc4 {[%clk 0:00:39]} 56. b5 {[%clk 0:00:44]}  Rxb5 {[%clk 0:00:40]} 57. Be2+ {[%clk 0:00:43]}  Kc5 {[%clk 0:00:39]} 58. Rxb5+ {[%clk 0:00:42]}  Kd6 {[%clk 0:00:40]} 59. Rb6+ {[%clk 0:00:41]}  Ke7 {[%clk 0:00:41]} 60. Rxh6 {[%clk 0:00:41]}  Kf7 {[%clk 0:00:41]} 61. g5 {[%clk 0:00:40]}  Kg7 {[%clk 0:00:42]} 62. Bc4 {[%clk 0:00:38]}  Kf8 {[%clk 0:00:41]} 63. Rh7 {[%clk 0:00:36]}  Ke8 {[%clk 0:00:41]} 64. Rf7 {[%clk 0:00:35]} 1-0


[Site "https://www.chess.com"]

[Event "Titled Tuesday Blitz March 22 Late 2022"]
[White "Papasimakopoulos, Alexandros"]
[Black "Karas, Marek"]
[WhiteFideId "4244125"]
[BlackFideId "14928558"]
[WhiteElo "2340"]
[BlackElo "2271"]
[Result "1-0"]
[Round "06"]
[TimeControl "180+1"]
[Date "2022.03.22"]
[WhiteClock "0:00:54"]
[BlackClock "0:00:11"]

1. d4 {[%clk 0:03:00]}  Nf6 {[%clk 0:02:59]} 2. c4 {[%clk 0:03:00]}  c5 {[%clk 0:02:59]} 3. d5 {[%clk 0:03:00]}  b5 {[%clk 0:02:59]} 4. Nf3 {[%clk 0:02:59]}  g6 {[%clk 0:02:58]} 5. cxb5 {[%clk 0:02:58]}  a6 {[%clk 0:02:56]} 6. e3 {[%clk 0:02:56]}  Bg7 {[%clk 0:02:54]} 7. Nc3 {[%clk 0:02:56]}  O-O {[%clk 0:02:53]} 8. a4 {[%clk 0:02:57]}  d6 {[%clk 0:02:53]} 9. Ra3 {[%clk 0:02:56]}  axb5 {[%clk 0:02:53]} 10. Bxb5 {[%clk 0:02:57]}  Ba6 {[%clk 0:02:50]} 11. O-O {[%clk 0:02:57]}  Bxb5 {[%clk 0:02:48]} 12. axb5 {[%clk 0:02:56]}  Nbd7 {[%clk 0:02:48]} 13. Qc2 {[%clk 0:02:47]}  Qb6 {[%clk 0:02:45]} 14. Nd2 {[%clk 0:02:43]}  Qb7 {[%clk 0:02:34]} 15. e4 {[%clk 0:02:41]}  Rfb8 {[%clk 0:02:33]} 16. Nc4 {[%clk 0:02:38]}  Ne8 {[%clk 0:02:27]} 17. Na5 {[%clk 0:02:34]}  Rxa5 {[%clk 0:02:22]} 18. Rxa5 {[%clk 0:02:33]}  Nb6 {[%clk 0:02:19]} 19. b3 {[%clk 0:02:20]}  Nc7 {[%clk 0:02:19]} 20. Bd2 {[%clk 0:02:15]}  Nd7 {[%clk 0:01:47]} 21. Rfa1 {[%clk 0:02:12]}  Qb6 {[%clk 0:01:46]} 22. h3 {[%clk 0:02:09]}  h5 {[%clk 0:01:40]} 23. Ra7 {[%clk 0:01:51]}  Nf6 {[%clk 0:01:31]} 24. Kh1 {[%clk 0:01:35]}  Kf8 {[%clk 0:01:21]} 25. R1a2 {[%clk 0:01:31]}  Nxb5 {[%clk 0:01:17]} 26. Nxb5 {[%clk 0:01:19]}  Qxb5 {[%clk 0:01:18]} 27. Ra8 {[%clk 0:01:17]}  Qf1+ {[%clk 0:01:12]} 28. Kh2 {[%clk 0:01:17]}  Rxa8 {[%clk 0:01:04]} 29. Rxa8+ {[%clk 0:01:17]}  Ne8 {[%clk 0:01:05]} 30. Bf4 {[%clk 0:01:09]}  Qb5 {[%clk 0:00:44]} 31. Qc4 {[%clk 0:01:04]}  Qd7 {[%clk 0:00:40]} 32. Qa4 {[%clk 0:01:03]}  Qxa4 {[%clk 0:00:29]} 33. bxa4 {[%clk 0:01:04]}  f5 {[%clk 0:00:21]} 34. exf5 {[%clk 0:01:00]}  gxf5 {[%clk 0:00:18]} 35. a5 {[%clk 0:01:00]}  Kf7 {[%clk 0:00:18]} 36. Rc8 {[%clk 0:00:56]}  Bd4 {[%clk 0:00:16]} 37. a6 {[%clk 0:00:55]}  c4 {[%clk 0:00:16]} 38. Be3 {[%clk 0:00:54]}  Be5+ {[%clk 0:00:11]} 39. f4 {[%clk 0:00:54]} 1-0


[Site "https://www.chess.com"]